[Event "*** SCC Grand Prix: Titled Tuesday Blitz"]
[Site "Chess.com"]
[Date "2020.08.25"]
[Round "9"]
[White "Meri-Arabidze"]
[Black "chenxiaoyuer"]
[Result "0-1"]
[WhiteElo "2585"]
[BlackElo "2466"]
[TimeControl "180+1"]
[EndTime "11:49:03 PDT"]
[Termination "chenxiaoyuer won on time"]

1. d4 {[%clk 0:03:00.9]} 1... Nf6 {[%clk 0:02:58.6]} 2. c4 {[%clk 0:03:01.4]}
2... g6 {[%clk 0:02:57.8]} 3. Nf3 {[%clk 0:03:01.4]} 3... Bg7 {[%clk 0:02:57.6]}
4. g3 {[%clk 0:03:01.8]} 4... O-O {[%clk 0:02:57.7]} 5. Bg2 {[%clk 0:03:02.2]}
5... d6 {[%clk 0:02:58.6]} 6. O-O {[%clk 0:03:02.1]} 6... Nc6 {[%clk 0:02:59.1]}
7. Nc3 {[%clk 0:03:02]} 7... Bg4 {[%clk 0:02:58.7]} 8. d5 {[%clk 0:02:58.5]}
8... Na5 {[%clk 0:02:56.4]} 9. Nd2 {[%clk 0:02:55.6]} 9... c5 {[%clk 0:02:55.7]}
10. Qc2 {[%clk 0:02:53]} 10... a6 {[%clk 0:02:54.1]} 11. h3 {[%clk 0:02:51.9]}
11... Bd7 {[%clk 0:02:53.5]} 12. a4 {[%clk 0:02:51]} 12... e5 {[%clk 0:02:44.5]}
13. e4 {[%clk 0:02:48]} 13... Nh5 {[%clk 0:02:36.8]} 14. Rb1 {[%clk 0:02:40.4]}
14... f5 {[%clk 0:02:32.1]} 15. exf5 {[%clk 0:02:38.8]} 15... gxf5 {[%clk
0:02:31]} 16. b3 {[%clk 0:02:20]} 16... e4 {[%clk 0:02:19]} 17. Re1 {[%clk
0:02:20.1]} 17... Qg5 {[%clk 0:01:32.9]} 18. Nf1 {[%clk 0:02:16.9]} 18... Qf6
{[%clk 0:01:27.1]} 19. Bb2 {[%clk 0:02:14.4]} 19... Qg6 {[%clk 0:01:21.2]} 20.
Ne2 {[%clk 0:01:58.6]} 20... Rae8 {[%clk 0:01:10.3]} 21. f4 {[%clk 0:01:47.6]}
21... Kh8 {[%clk 0:00:47.7]} 22. Kh2 {[%clk 0:01:40.6]} 22... Rg8 {[%clk
0:00:46.9]} 23. Bxg7+ {[%clk 0:01:39.9]} 23... Qxg7 {[%clk 0:00:46.9]} 24. Qd2
{[%clk 0:01:33.4]} 24... b6 {[%clk 0:00:45.9]} 25. Qe3 {[%clk 0:01:33.4]} 25...
Nf6 {[%clk 0:00:41.7]} 26. Nd2 {[%clk 0:01:30.3]} 26... h5 {[%clk 0:00:36.7]}
27. Rg1 {[%clk 0:01:24.3]} 27... h4 {[%clk 0:00:27.6]} 28. gxh4 {[%clk 0:01:23]}
28... Qh6 {[%clk 0:00:27.6]} 29. Qc3 {[%clk 0:00:29.2]} 29... Qxh4 {[%clk
0:00:25]} 30. Bh1 {[%clk 0:00:16.6]} 30... Qf2+ {[%clk 0:00:23.1]} 31. Rg2
{[%clk 0:00:14.6]} 31... Rxg2+ {[%clk 0:00:21.3]} 32. Bxg2 {[%clk 0:00:15]}
32... Rf8 {[%clk 0:00:17.2]} 33. Ng3 {[%clk 0:00:14.4]} 33... Kh7 {[%clk
0:00:15.2]} 34. Rf1 {[%clk 0:00:14.2]} 34... Qd4 {[%clk 0:00:14.9]} 35. Rc1
{[%clk 0:00:10.1]} 35... Rg8 {[%clk 0:00:14.2]} 36. Ndf1 {[%clk 0:00:09.5]}
36... Ne8 {[%clk 0:00:05.3]} 37. Ne3 {[%clk 0:00:09.5]} 37... Ng7 {[%clk
0:00:04.6]} 38. Rc2 {[%clk 0:00:08.6]} 38... Rb8 {[%clk 0:00:03.7]} 39. Rc1
{[%clk 0:00:04.5]} 39... Qxc3 {[%clk 0:00:03.8]} 40. Rxc3 {[%clk 0:00:04.2]}
40... Kg6 {[%clk 0:00:04.3]} 41. Ne2 {[%clk 0:00:03.2]} 41... Kf6 {[%clk
0:00:04.5]} 42. Nd1 {[%clk 0:00:03.3]} 42... Nb7 {[%clk 0:00:04.7]} 43. Rg3
{[%clk 0:00:03.3]} 43... Rh8 {[%clk 0:00:03.6]} 44. Rg5 {[%clk 0:00:03.6]} 44...
Nd8 {[%clk 0:00:03.7]} 45. Ne3 {[%clk 0:00:04.1]} 45... Nf7 {[%clk 0:00:03.8]}
46. Rg3 {[%clk 0:00:04.4]} 46... Nh5 {[%clk 0:00:04]} 47. Bf1 {[%clk 0:00:02.8]}
47... Nxg3 {[%clk 0:00:03.7]} 48. Nxg3 {[%clk 0:00:03.7]} 48... Rh4 {[%clk
0:00:04.1]} 49. Ne2 {[%clk 0:00:03.1]} 49... Rh8 {[%clk 0:00:04]} 50. Kg3 {[%clk
0:00:03.6]} 50... Nh6 {[%clk 0:00:04.3]} 51. Kf2 {[%clk 0:00:03.9]} 51... Ng8
{[%clk 0:00:04.6]} 52. Ng3 {[%clk 0:00:04.2]} 52... Ne7 {[%clk 0:00:05.5]} 53.
Bg2 {[%clk 0:00:04.4]} 53... Ng6 {[%clk 0:00:05.9]} 54. Ne2 {[%clk 0:00:04.3]}
54... Nh4 {[%clk 0:00:06.3]} 55. Bh1 {[%clk 0:00:04.6]} 55... Rg8 {[%clk
0:00:06.4]} 56. Ng3 {[%clk 0:00:03.9]} 56... Ng6 {[%clk 0:00:06.6]} 57. Nh5+
{[%clk 0:00:04]} 57... Kf7 {[%clk 0:00:06.9]} 58. Ng3 {[%clk 0:00:04.9]} 58...
Nxf4 {[%clk 0:00:06.9]} 59. Ngxf5 {[%clk 0:00:04.3]} 59... Nxh3+ {[%clk
0:00:07.1]} 60. Ke2 {[%clk 0:00:04.6]} 60... Bxf5 {[%clk 0:00:05.3]} 61. Nxf5
{[%clk 0:00:04.5]} 61... Rd8 {[%clk 0:00:05.5]} 62. Bxe4 {[%clk 0:00:03.9]}
62... Kf6 {[%clk 0:00:05.9]} 63. Ke3 {[%clk 0:00:03.8]} 63... Ke5 {[%clk
0:00:05.9]} 64. Nh4 {[%clk 0:00:02.8]} 64... Ng5 {[%clk 0:00:05.9]} 65. Nf3+
{[%clk 0:00:02.9]} 65... Nxf3 {[%clk 0:00:06]} 66. Bxf3 {[%clk 0:00:03.6]} 66...
Rh8 {[%clk 0:00:06.6]} 67. a5 {[%clk 0:00:03]} 67... bxa5 {[%clk 0:00:06.3]} 68.
Bd1 {[%clk 0:00:03.1]} 68... Rb8 {[%clk 0:00:06.6]} 69. Kd2 {[%clk 0:00:03.3]}
69... Rb4 {[%clk 0:00:07.5]} 70. Kc3 {[%clk 0:00:03.6]} 70... Ke4 {[%clk
0:00:07.7]} 71. Bc2+ {[%clk 0:00:03.9]} 71... Ke3 {[%clk 0:00:07.9]} 72. Bf5
{[%clk 0:00:04]} 72... a4 {[%clk 0:00:07.1]} 73. bxa4 {[%clk 0:00:04.3]} 73...
Rxa4 {[%clk 0:00:08]} 74. Bd7 {[%clk 0:00:04.3]} 74... Rb4 {[%clk 0:00:08.9]}
75. Bc6 {[%clk 0:00:04]} 75... a5 {[%clk 0:00:09.8]} 76. Bb5 {[%clk 0:00:04]}
76... a4 {[%clk 0:00:10.7]} 77. Bc6 {[%clk 0:00:01.8]} 77... a3 {[%clk
0:00:10.9]} 78. Ba4 {[%clk 0:00:01.6]} 78... a2 {[%clk 0:00:11.8]} 0-1

[Event "*** SCC Grand Prix: Titled Tuesday Blitz"]
[Site "Chess.com"]
[Date "2020.08.25"]
[Round "9"]
[White "IMAghasiyevKamal"]
[Black "Flawless_Fighter"]
[Result "1/2-1/2"]
[WhiteElo "2433"]
[BlackElo "2557"]
[TimeControl "180+1"]
[EndTime "11:49:07 PDT"]
[Termination "Game drawn by repetition"]

1. d4 {[%clk 0:02:53.7]} 1... d5 {[%clk 0:02:59.1]} 2. c4 {[%clk 0:02:53.2]}
2... e6 {[%clk 0:03:00]} 3. Nc3 {[%clk 0:02:52.5]} 3... c5 {[%clk 0:02:59.1]} 4.
e3 {[%clk 0:02:44.4]} 4... Nf6 {[%clk 0:02:57.7]} 5. Nf3 {[%clk 0:02:42.7]} 5...
cxd4 {[%clk 0:02:57.5]} 6. exd4 {[%clk 0:02:38.4]} 6... Bb4 {[%clk 0:02:57.3]}
7. Bd3 {[%clk 0:02:33.4]} 7... dxc4 {[%clk 0:02:53]} 8. Bxc4 {[%clk 0:02:32.8]}
8... O-O {[%clk 0:02:53.6]} 9. O-O {[%clk 0:02:31.2]} 9... b6 {[%clk 0:02:54]}
10. Bg5 {[%clk 0:02:27.2]} 10... Bb7 {[%clk 0:02:53.8]} 11. Ne5 {[%clk
0:02:24.4]} 11... Be7 {[%clk 0:02:14.4]} 12. Re1 {[%clk 0:01:40.1]} 12... Nc6
{[%clk 0:02:11.1]} 13. Ba6 {[%clk 0:01:22.4]} 13... Qc8 {[%clk 0:01:50.4]} 14.
Bxb7 {[%clk 0:00:48.2]} 14... Qxb7 {[%clk 0:01:51.3]} 15. Nxc6 {[%clk
0:00:47.3]} 15... Qxc6 {[%clk 0:01:51.1]} 16. Bxf6 {[%clk 0:00:45.8]} 16... Bxf6
{[%clk 0:01:51.7]} 17. d5 {[%clk 0:00:46.1]} 17... exd5 {[%clk 0:01:36.4]} 18.
Nxd5 {[%clk 0:00:45.5]} 18... Rad8 {[%clk 0:01:32.2]} 19. Nxf6+ {[%clk
0:00:40.1]} 19... Qxf6 {[%clk 0:01:33.1]} 20. Qe2 {[%clk 0:00:39.9]} 20... h6
{[%clk 0:01:19.4]} 21. Rad1 {[%clk 0:00:38.7]} 21... Rxd1 {[%clk 0:01:12.4]} 22.
Rxd1 {[%clk 0:00:37.4]} 22... Rc8 {[%clk 0:01:12.8]} 23. h3 {[%clk 0:00:35.2]}
23... Qf5 {[%clk 0:01:10]} 24. Qd3 {[%clk 0:00:32.1]} 24... Qxd3 {[%clk
0:01:05.1]} 25. Rxd3 {[%clk 0:00:31.6]} 25... Rc1+ {[%clk 0:01:05.7]} 26. Kh2
{[%clk 0:00:27.5]} 26... Rc2 {[%clk 0:01:06.6]} 27. Rd8+ {[%clk 0:00:27.7]}
27... Kh7 {[%clk 0:01:06]} 28. Rd7 {[%clk 0:00:27.8]} 28... Rxb2 {[%clk
0:00:52.3]} 29. Rxa7 {[%clk 0:00:23.9]} 29... Rxf2 {[%clk 0:00:52.4]} 30. Rb7
{[%clk 0:00:18.6]} 30... Rf6 {[%clk 0:00:49.3]} 31. a4 {[%clk 0:00:14.4]} 31...
g5 {[%clk 0:00:48.6]} 32. Ra7 {[%clk 0:00:14]} 32... Rf5 {[%clk 0:00:45.9]} 33.
Rb7 {[%clk 0:00:12.7]} 33... Rf6 {[%clk 0:00:46.5]} 34. Ra7 {[%clk 0:00:12.4]}
34... Kg6 {[%clk 0:00:41.3]} 35. a5 {[%clk 0:00:11]} 35... bxa5 {[%clk
0:00:42.2]} 36. Rxa5 {[%clk 0:00:11.9]} 36... Rb6 {[%clk 0:00:42.2]} 37. g4
{[%clk 0:00:11.9]} 37... Rb2+ {[%clk 0:00:41.4]} 38. Kg3 {[%clk 0:00:12.3]}
38... Rb3+ {[%clk 0:00:42.3]} 39. Kg2 {[%clk 0:00:12.5]} 39... Re3 {[%clk
0:00:42.5]} 40. Ra6+ {[%clk 0:00:11.5]} 40... Re6 {[%clk 0:00:43.2]} 41. Ra5
{[%clk 0:00:11.1]} 41... h5 {[%clk 0:00:43.4]} 42. h4 {[%clk 0:00:09.7]} 42...
f6 {[%clk 0:00:24.9]} 43. gxh5+ {[%clk 0:00:08]} 43... Kxh5 {[%clk 0:00:24.3]}
44. hxg5 {[%clk 0:00:08.3]} 44... fxg5 {[%clk 0:00:25.2]} 45. Ra1 {[%clk
0:00:06.8]} 45... Re2+ {[%clk 0:00:25.1]} 46. Kg1 {[%clk 0:00:07.1]} 46... Kg4
{[%clk 0:00:24.4]} 47. Rb1 {[%clk 0:00:07.3]} 47... Re3 {[%clk 0:00:22.7]} 48.
Ra1 {[%clk 0:00:07.4]} 48... Rb3 {[%clk 0:00:22.8]} 49. Rc1 {[%clk 0:00:07.4]}
49... Kg3 {[%clk 0:00:22.9]} 50. Ra1 {[%clk 0:00:07.6]} 50... Rc3 {[%clk
0:00:21.9]} 51. Rf1 {[%clk 0:00:08]} 51... Ra3 {[%clk 0:00:21.7]} 52. Re1 {[%clk
0:00:08.4]} 52... Kh3 {[%clk 0:00:21.7]} 53. Rf1 {[%clk 0:00:08.7]} 53... Ra2
{[%clk 0:00:21.5]} 54. Re1 {[%clk 0:00:09.1]} 54... Rg2+ {[%clk 0:00:22]} 55.
Kh1 {[%clk 0:00:09.3]} 55... Rh2+ {[%clk 0:00:22.6]} 56. Kg1 {[%clk 0:00:09.5]}
56... Rg2+ {[%clk 0:00:23.3]} 57. Kh1 {[%clk 0:00:09.8]} 57... Ra2 {[%clk
0:00:24.2]} 58. Kg1 {[%clk 0:00:10]} 58... g4 {[%clk 0:00:24.2]} 59. Kh1 {[%clk
0:00:10.4]} 59... Kg3 {[%clk 0:00:24.2]} 60. Kg1 {[%clk 0:00:10.8]} 60... Kf3
{[%clk 0:00:24.7]} 61. Rf1+ {[%clk 0:00:10.4]} 61... Ke3 {[%clk 0:00:25]} 62.
Rf8 {[%clk 0:00:10.4]} 62... Ra4 {[%clk 0:00:22.4]} 63. Rf7 {[%clk 0:00:10.2]}
63... Rf4 {[%clk 0:00:17.2]} 64. Rxf4 {[%clk 0:00:09.2]} 64... Kxf4 {[%clk
0:00:18.1]} 65. Kf2 {[%clk 0:00:09.5]} 65... Ke4 {[%clk 0:00:18.5]} 66. Kg3
{[%clk 0:00:09.6]} 66... Kf5 {[%clk 0:00:19.4]} 67. Kg2 {[%clk 0:00:10.1]} 67...
Kf4 {[%clk 0:00:20.3]} 68. Kf2 {[%clk 0:00:10.5]} 68... Kg5 {[%clk 0:00:20.4]}
69. Kg3 {[%clk 0:00:10.8]} 69... Kh5 {[%clk 0:00:21.3]} 70. Kg2 {[%clk
0:00:10.6]} 70... Kh4 {[%clk 0:00:21.9]} 71. Kh2 {[%clk 0:00:11]} 71... Kg5
{[%clk 0:00:21.9]} 72. Kg3 {[%clk 0:00:11.4]} 72... Kf5 {[%clk 0:00:22.5]} 73.
Kg2 {[%clk 0:00:11.7]} 73... Kf4 {[%clk 0:00:23.4]} 74. Kf2 {[%clk 0:00:12.2]}
1/2-1/2

[Event "*** SCC Grand Prix: Titled Tuesday Blitz"]
[Site "Chess.com"]
[Date "2020.08.25"]
[Round "9"]
[White "vovachesss"]
[Black "KaterinaMiroshnik"]
[Result "1-0"]
[WhiteElo "2588"]
[BlackElo "2442"]
[TimeControl "180+1"]
[EndTime "11:49:11 PDT"]
[Termination "vovachesss won by checkmate"]

1. c4 {[%clk 0:02:57.9]} 1... d6 {[%clk 0:02:59.9]} 2. Nc3 {[%clk 0:02:57.5]}
2... Nd7 {[%clk 0:03:00.8]} 3. g3 {[%clk 0:02:57.6]} 3... g6 {[%clk 0:03:01.7]}
4. Bg2 {[%clk 0:02:57.9]} 4... Bg7 {[%clk 0:03:02.6]} 5. e3 {[%clk 0:02:57.9]}
5... Ngf6 {[%clk 0:03:03.2]} 6. Nge2 {[%clk 0:02:58.4]} 6... e5 {[%clk
0:03:03.6]} 7. O-O {[%clk 0:02:58.8]} 7... O-O {[%clk 0:03:03.9]} 8. d4 {[%clk
0:02:59.2]} 8... c6 {[%clk 0:03:02.4]} 9. b3 {[%clk 0:02:56.6]} 9... Qc7 {[%clk
0:03:02.8]} 10. Bb2 {[%clk 0:02:56.2]} 10... Re8 {[%clk 0:03:02.8]} 11. Rc1
{[%clk 0:02:55.6]} 11... Nf8 {[%clk 0:03:03.2]} 12. Qc2 {[%clk 0:02:46.9]} 12...
Bf5 {[%clk 0:03:02.8]} 13. e4 {[%clk 0:02:45.2]} 13... Be6 {[%clk 0:03:03]} 14.
d5 {[%clk 0:02:42.9]} 14... Bd7 {[%clk 0:03:03.6]} 15. dxc6 {[%clk 0:02:40.4]}
15... Bxc6 {[%clk 0:03:02.7]} 16. Rfd1 {[%clk 0:02:31.7]} 16... Ne6 {[%clk
0:03:02.2]} 17. Nd5 {[%clk 0:02:23.4]} 17... Bxd5 {[%clk 0:02:56.5]} 18. cxd5
{[%clk 0:02:24.3]} 18... Qxc2 {[%clk 0:02:56.9]} 19. Rxc2 {[%clk 0:02:25.2]}
19... Nc5 {[%clk 0:02:57.3]} 20. f3 {[%clk 0:02:19.1]} 20... a5 {[%clk 0:02:53]}
21. Ba3 {[%clk 0:02:15.7]} 21... b6 {[%clk 0:02:53.2]} 22. Nc3 {[%clk
0:02:14.8]} 22... Rec8 {[%clk 0:02:44.6]} 23. Nb5 {[%clk 0:02:11.7]} 23... Ne8
{[%clk 0:02:44.6]} 24. Rdc1 {[%clk 0:02:08.9]} 24... Kf8 {[%clk 0:02:37.8]} 25.
Rc4 {[%clk 0:02:04.4]} 25... Ke7 {[%clk 0:02:35.1]} 26. Kf2 {[%clk 0:01:57.8]}
26... Kd8 {[%clk 0:02:33.7]} 27. Ke2 {[%clk 0:01:51.6]} 27... Bh6 {[%clk
0:02:30]} 28. R1c2 {[%clk 0:01:41.8]} 28... Bg7 {[%clk 0:02:28]} 29. Bh3 {[%clk
0:01:40.1]} 29... Rcb8 {[%clk 0:02:27.4]} 30. Bc1 {[%clk 0:01:35.4]} 30... Rb7
{[%clk 0:02:23.8]} 31. Be3 {[%clk 0:01:34.6]} 31... f6 {[%clk 0:02:14.4]} 32. a3
{[%clk 0:01:28.3]} 32... Bf8 {[%clk 0:02:03.5]} 33. b4 {[%clk 0:01:24.4]} 33...
axb4 {[%clk 0:02:03.7]} 34. axb4 {[%clk 0:01:25.3]} 34... Nd7 {[%clk 0:02:03.8]}
35. Rc6 {[%clk 0:01:14.5]} 35... Rab8 {[%clk 0:01:54]} 36. Be6 {[%clk
0:01:12.5]} 36... Be7 {[%clk 0:01:53.4]} 37. Bg8 {[%clk 0:01:09.8]} 37... h5
{[%clk 0:01:42.2]} 38. Bf7 {[%clk 0:01:09.1]} 38... Nf8 {[%clk 0:01:42.4]} 39.
Bh6 {[%clk 0:00:54.8]} 39... g5 {[%clk 0:01:19.5]} 40. Bxh5 {[%clk 0:00:51.3]}
40... Nd7 {[%clk 0:01:18.4]} 41. Bg4 {[%clk 0:00:46.2]} 41... Ra8 {[%clk
0:01:11.5]} 42. h4 {[%clk 0:00:39.4]} 42... gxh4 {[%clk 0:01:11]} 43. gxh4
{[%clk 0:00:40.3]} 43... Rbb8 {[%clk 0:01:11.6]} 44. Nc7 {[%clk 0:00:25.2]}
44... Nxc7 {[%clk 0:01:09.6]} 45. Rxc7 {[%clk 0:00:26.1]} 45... Nc5 {[%clk
0:01:08.9]} 46. Rxe7 {[%clk 0:00:20]} 46... Kxe7 {[%clk 0:01:09.8]} 47. bxc5
{[%clk 0:00:20.2]} 47... dxc5 {[%clk 0:01:06.9]} 48. h5 {[%clk 0:00:20.2]} 48...
Kf7 {[%clk 0:00:54.7]} 49. Bf5 {[%clk 0:00:19.3]} 49... Ra1 {[%clk 0:00:50.8]}
50. Bg6+ {[%clk 0:00:18.4]} 50... Kg8 {[%clk 0:00:47.8]} 51. Be3 {[%clk
0:00:17.3]} 51... Rh1 {[%clk 0:00:46.3]} 52. h6 {[%clk 0:00:16.4]} 52... Rh2+
{[%clk 0:00:44.6]} 53. Kd3 {[%clk 0:00:16.9]} 53... Rh3 {[%clk 0:00:34.6]} 54.
Kc4 {[%clk 0:00:14.4]} 54... Rxf3 {[%clk 0:00:32.9]} 55. Rc3 {[%clk 0:00:08.7]}
55... Rg3 {[%clk 0:00:29]} 56. Bf5 {[%clk 0:00:07.7]} 56... Ra8 {[%clk
0:00:21.1]} 57. Kb5 {[%clk 0:00:07.6]} 57... Rb8 {[%clk 0:00:19.6]} 58. d6
{[%clk 0:00:07.7]} 58... Rd8 {[%clk 0:00:19.6]} 59. Kc6 {[%clk 0:00:07.9]} 59...
Kf7 {[%clk 0:00:19.3]} 60. Kc7 {[%clk 0:00:07.9]} 60... Ra8 {[%clk 0:00:18.3]}
61. d7 {[%clk 0:00:07.5]} 61... Rgg8 {[%clk 0:00:18.3]} 62. h7 {[%clk
0:00:06.7]} 62... Rh8 {[%clk 0:00:16.7]} 63. Rd3 {[%clk 0:00:06.5]} 63... Ra7+
{[%clk 0:00:17.2]} 64. Kxb6 {[%clk 0:00:06.4]} 64... Raa8 {[%clk 0:00:17.7]} 65.
Bxc5 {[%clk 0:00:06.1]} 65... Rhb8+ {[%clk 0:00:18]} 66. Kc7 {[%clk 0:00:06.5]}
66... Rd8 {[%clk 0:00:18.1]} 67. Bb6 {[%clk 0:00:06.3]} 67... Ke7 {[%clk
0:00:15]} 68. Kb7 {[%clk 0:00:06.3]} 68... Rab8+ {[%clk 0:00:15.1]} 69. Kc6
{[%clk 0:00:06.1]} 69... Rh8 {[%clk 0:00:12.1]} 70. d8=Q+ {[%clk 0:00:05.8]}
70... Rhxd8 {[%clk 0:00:12.4]} 71. Rxd8 {[%clk 0:00:06.4]} 71... Rxd8 {[%clk
0:00:10.9]} 72. Bxd8+ {[%clk 0:00:07.3]} 72... Kxd8 {[%clk 0:00:11]} 73. h8=Q+
{[%clk 0:00:07.3]} 73... Ke7 {[%clk 0:00:11.9]} 74. Qg7+ {[%clk 0:00:07.6]}
74... Ke8 {[%clk 0:00:12.8]} 75. Bg6+ {[%clk 0:00:07.8]} 75... Kd8 {[%clk
0:00:12.8]} 76. Qd7# {[%clk 0:00:08.7]} 1-0

[Event "*** SCC Grand Prix: Titled Tuesday Blitz"]
[Site "Chess.com"]
[Date "2020.08.25"]
[Round "9"]
[White "Evandro_Barbosa"]
[Black "Falcon28dz"]
[Result "1/2-1/2"]
[WhiteElo "2556"]
[BlackElo "2183"]
[TimeControl "180+1"]
[EndTime "11:49:11 PDT"]
[Termination "Game drawn - insufficient material"]

1. e4 {[%clk 0:03:00.9]} 1... e6 {[%clk 0:03:00.1]} 2. d4 {[%clk 0:03:00.3]}
2... d5 {[%clk 0:03:00.3]} 3. Nc3 {[%clk 0:03:00.8]} 3... Nf6 {[%clk 0:03:00.3]}
4. e5 {[%clk 0:03:01.2]} 4... Nfd7 {[%clk 0:03:00.8]} 5. f4 {[%clk 0:03:01.5]}
5... c5 {[%clk 0:03:01.5]} 6. Nf3 {[%clk 0:03:01.6]} 6... Nc6 {[%clk 0:03:02.3]}
7. Be3 {[%clk 0:03:01.6]} 7... cxd4 {[%clk 0:03:03.1]} 8. Nxd4 {[%clk
0:03:01.7]} 8... Bc5 {[%clk 0:03:04]} 9. Qd2 {[%clk 0:03:01.7]} 9... O-O {[%clk
0:03:04.2]} 10. O-O-O {[%clk 0:03:01.9]} 10... Nxd4 {[%clk 0:03:04.8]} 11. Bxd4
{[%clk 0:03:01.5]} 11... a6 {[%clk 0:03:05.7]} 12. Qf2 {[%clk 0:03:00.8]} 12...
Qc7 {[%clk 0:03:03.9]} 13. Bd3 {[%clk 0:03:00.1]} 13... b5 {[%clk 0:03:00.2]}
14. Qh4 {[%clk 0:02:58.8]} 14... g6 {[%clk 0:02:55.7]} 15. Ne2 {[%clk
0:02:57.5]} 15... b4 {[%clk 0:02:40.8]} 16. Qh6 {[%clk 0:02:56.6]} 16... Re8
{[%clk 0:02:15.4]} 17. Kb1 {[%clk 0:02:37]} 17... a5 {[%clk 0:02:10.6]} 18. Bb5
{[%clk 0:02:29.8]} 18... Bf8 {[%clk 0:01:59.7]} 19. Qh4 {[%clk 0:02:24.7]} 19...
Ba6 {[%clk 0:01:59.1]} 20. Bxa6 {[%clk 0:02:08.5]} 20... Rxa6 {[%clk 0:01:59.4]}
21. g4 {[%clk 0:02:08.5]} 21... a4 {[%clk 0:01:46.1]} 22. Rc1 {[%clk 0:02:08.1]}
22... Nc5 {[%clk 0:01:38.1]} 23. Ng3 {[%clk 0:01:55]} 23... b3 {[%clk
0:01:31.2]} 24. cxb3 {[%clk 0:01:54.2]} 24... axb3 {[%clk 0:01:29.9]} 25. a3
{[%clk 0:01:51.8]} 25... Rc6 {[%clk 0:01:29.6]} 26. f5 {[%clk 0:01:40.7]} 26...
Nd3 {[%clk 0:01:25.2]} 27. Rcd1 {[%clk 0:01:20.5]} 27... Ra6 {[%clk 0:00:13.1]}
28. Rd2 {[%clk 0:00:29.5]} 28... Qc4 {[%clk 0:00:12.9]} 29. Ne2 {[%clk
0:00:22.6]} 29... Nb4 {[%clk 0:00:04.4]} 30. Qg3 {[%clk 0:00:20.3]} 30... Nc2
{[%clk 0:00:02.5]} 31. Qc3 {[%clk 0:00:18.9]} 31... Qxc3 {[%clk 0:00:01.6]} 32.
Bxc3 {[%clk 0:00:16.8]} 32... Rea8 {[%clk 0:00:02.2]} 33. Nd4 {[%clk 0:00:16.7]}
33... Nxd4 {[%clk 0:00:01.4]} 34. Bxd4 {[%clk 0:00:17.2]} 34... Ra4 {[%clk
0:00:02.2]} 35. Rc1 {[%clk 0:00:16.8]} 35... Rc4 {[%clk 0:00:03.1]} 36. Rxc4
{[%clk 0:00:15.8]} 36... dxc4 {[%clk 0:00:04]} 37. Bc3 {[%clk 0:00:16.3]} 37...
Rc8 {[%clk 0:00:04.6]} 38. f6 {[%clk 0:00:15.8]} 38... Bh6 {[%clk 0:00:04.6]}
39. Rd7 {[%clk 0:00:14.9]} 39... Bf4 {[%clk 0:00:04.8]} 40. h4 {[%clk
0:00:13.8]} 40... h6 {[%clk 0:00:05.3]} 41. h5 {[%clk 0:00:13.6]} 41... gxh5
{[%clk 0:00:05.5]} 42. gxh5 {[%clk 0:00:14.5]} 42... Rc5 {[%clk 0:00:03.1]} 43.
Rd8+ {[%clk 0:00:13.4]} 43... Kh7 {[%clk 0:00:03.6]} 44. Rf8 {[%clk 0:00:13.9]}
44... Bxe5 {[%clk 0:00:03.1]} 45. Rxf7+ {[%clk 0:00:13.6]} 45... Kg8 {[%clk
0:00:03.7]} 46. Rg7+ {[%clk 0:00:13]} 46... Kf8 {[%clk 0:00:04.3]} 47. Rg6
{[%clk 0:00:08]} 47... Kf7 {[%clk 0:00:03.9]} 48. Rxh6 {[%clk 0:00:06.8]} 48...
Bxc3 {[%clk 0:00:03.8]} 49. bxc3 {[%clk 0:00:06.3]} 49... Rf5 {[%clk 0:00:04.5]}
50. a4 {[%clk 0:00:06.3]} 50... Rf1+ {[%clk 0:00:03.1]} 51. Kb2 {[%clk
0:00:06.5]} 51... Rf2+ {[%clk 0:00:04]} 52. Kb1 {[%clk 0:00:05.6]} 52... Rf1+
{[%clk 0:00:04.3]} 53. Kb2 {[%clk 0:00:05]} 53... Rf2+ {[%clk 0:00:05.2]} 54.
Ka1 {[%clk 0:00:03.9]} 54... Ra2+ {[%clk 0:00:05.4]} 55. Kb1 {[%clk 0:00:04.2]}
55... Rxa4 {[%clk 0:00:06.3]} 56. Rg6 {[%clk 0:00:03.6]} 56... Ra5 {[%clk
0:00:06]} 57. Rg4 {[%clk 0:00:03.6]} 57... Rc5 {[%clk 0:00:04.9]} 58. h6 {[%clk
0:00:03.1]} 58... Kxf6 {[%clk 0:00:04.6]} 59. Rh4 {[%clk 0:00:02.4]} 59... Rc8
{[%clk 0:00:05.1]} 60. h7 {[%clk 0:00:02.6]} 60... Rh8 {[%clk 0:00:05.8]} 61.
Kb2 {[%clk 0:00:02.6]} 61... Kg7 {[%clk 0:00:05.9]} 62. Rxc4 {[%clk 0:00:02.9]}
62... Rxh7 {[%clk 0:00:06.5]} 63. Kxb3 {[%clk 0:00:03.6]} 63... Kf6 {[%clk
0:00:06.8]} 64. Rc8 {[%clk 0:00:02.2]} 64... e5 {[%clk 0:00:06.9]} 65. Kc4
{[%clk 0:00:02.6]} 65... Rd7 {[%clk 0:00:06.3]} 66. Rc6+ {[%clk 0:00:03.5]}
66... Kf5 {[%clk 0:00:06.4]} 67. Kb5 {[%clk 0:00:04.2]} 67... e4 {[%clk
0:00:06.9]} 68. Rc8 {[%clk 0:00:04.5]} 68... e3 {[%clk 0:00:07.2]} 69. Rf8+
{[%clk 0:00:04.9]} 69... Ke4 {[%clk 0:00:07.3]} 70. Re8+ {[%clk 0:00:05.4]}
70... Kd3 {[%clk 0:00:07.9]} 71. c4 {[%clk 0:00:06.1]} 71... e2 {[%clk
0:00:06.8]} 72. c5 {[%clk 0:00:06.6]} 72... Rd4 {[%clk 0:00:06.2]} 73. Rxe2
{[%clk 0:00:04.7]} 73... Kxe2 {[%clk 0:00:07.1]} 74. c6 {[%clk 0:00:05.4]} 74...
Rd1 {[%clk 0:00:05.1]} 75. c7 {[%clk 0:00:05.6]} 75... Rb1+ {[%clk 0:00:05]} 76.
Kc6 {[%clk 0:00:05.6]} 76... Kd3 {[%clk 0:00:05.3]} 77. Kd7 {[%clk 0:00:06.1]}
77... Rc1 {[%clk 0:00:05.9]} 78. c8=Q {[%clk 0:00:06.4]} 78... Rxc8 {[%clk
0:00:06.4]} 79. Kxc8 {[%clk 0:00:07]} 1/2-1/2